fUSD/lending_fUSD_20250504
["ID","MTS","AMOUNT","RATE_DAILY","PERIOD"]
[359793297,1746351053170,-722.64,0.0001989,2]
[359793298,1746351053179,-450.0,0.0001989,2]
[359793299,1746351053188,-151.0,0.0001989,2]
[359793300,1746351053197,-881.79,0.0001989,2]
[359793301,1746351053207,-1402.98,0.0001989,2]
[359793302,1746351053216,-450.0,0.0001989,2]
[359793303,1746351053226,-528.63,0.0001989,2]
[359793304,1746351053235,-1082.24,0.0001989,2]
[359793305,1746351053244,-7221.87,0.0001989,2]
[359793306,1746351053254,-709.41,0.0001989,2]
[359793307,1746351053264,-450.0,0.0001989,2]
[359793308,1746351053274,-4203.96,0.0001989,2]
[359793309,1746351053283,-450.0,0.0001989,2]
[359793310,1746351053293,-450.0,0.0001989,2]
[359793311,1746351053302,-450.0,0.0001989,2]
[359793312,1746351053312,-696.93,0.0001989,2]
[359793313,1746351053321,-450.0,0.0001989,2]
[359793314,1746351053331,-831.17,0.0001989,2]
[359793315,1746351053341,-73600.72,0.0001989,2]
[359793316,1746351053350,-865.37,0.0001989,2]
[359793317,1746351053360,-450.0,0.0001989,2]
[359793318,1746351053369,-188.822306,0.0001989,2]
[359793319,1746351053379,-450.0,0.0001989,2]
[359793320,1746351053388,-450.0,0.0001989,2]
[359793321,1746351053398,-450.0,0.0001989,2]
[359793322,1746351053407,-151.0,0.0001989,2]
[359793323,1746351053416,-804.23,0.0001989,2]
[359793324,1746351053426,-450.0,0.0001989,2]
[359793325,1746351053435,-1204.66,0.0001989,2]
[359793326,1746351053445,-151.0,0.0001989,2]
[359793327,1746351053454,-3216.35,0.0001989,2]
[359793328,1746351053463,-493.14,0.0001989,2]
[359793329,1746351053473,-450.0,0.0001989,2]
[359793330,1746351053482,-691.8,0.0001989,2]
[359793331,1746351053492,-516.12,0.0001989,2]
[359793332,1746351053501,-539.48,0.0001989,2]
[359793333,1746351053510,-450.0,0.0001989,2]
[359793334,1746351053520,-450.0,0.0001989,2]
[359793335,1746351053529,-494.11,0.0001989,2]
[359793336,1746351053539,-450.0,0.0001989,2]
[359793337,1746351053548,-450.0,0.0001989,2]
[359793338,1746351053557,-450.0,0.0001989,2]
[359793339,1746351053567,-565.36,0.0001989,2]
[359793340,1746351053576,-2472.25,0.0001989,2]
[359793341,1746351053585,-3327.9,0.0001989,2]
[359793342,1746351053595,-559.97,0.0001989,2]
[359793343,1746351053605,-450.0,0.0001989,2]
[359793344,1746351053614,-450.0,0.0001989,2]
[359793345,1746351053623,-1396.5,0.0001989,2]
[359793346,1746351053633,-554.7,0.0001989,2]
[359793347,1746351053642,-450.0,0.0001989,2]
[359793348,1746351053652,-1108.1,0.0001989,2]
[359793349,1746351053661,-1188.84,0.0001989,2]
[359793350,1746351053671,-450.0,0.0001989,2]
[359793351,1746351053680,-450.0,0.0001989,2]
[359793352,1746351053690,-12500.0,0.00019892,2]
[359793353,1746351053699,-547.0,0.00019895,2]
[359793354,1746351053708,-151.0,0.000199,2]
[359793355,1746351053718,-151.0,0.000199,2]
[359793356,1746351053727,-151.0,0.000199,2]
[359793357,1746351053736,-151.0,0.000199,2]
[359793358,1746351053746,-12500.0,0.000199,2]
[359793359,1746351053756,-440.73044005,0.000199,2]
[359793360,1746351053766,-1599.89864798,0.000199,2]
[359793361,1746351053776,-308.93535096,0.000199,2]
[359793362,1746351053786,-172.86744494,0.000199,2]
[359793363,1746351053796,-151.0,0.00019901,2]
[359793364,1746351053805,-360.04028,0.00019901,2]
[359793365,1746351053815,-360.04028,0.00019901,2]
[359793366,1746351053825,-12500.0,0.00019901,2]
[359793367,1746351053835,-1000.0,0.00019909,2]
[359793368,1746351053844,-12500.0,0.0001991,2]
[359793369,1746351053853,-474.12,0.00019917,2]
[359793370,1746351053863,-450.0,0.00019917,2]
[359793371,1746351053872,-450.0,0.00019917,2]
[359793372,1746351053882,-666.05,0.00019917,2]
[359793373,1746351053891,-518.63,0.00019917,2]
[359793374,1746351053901,-690.36,0.00019917,2]
[359793375,1746351053911,-450.0,0.00019917,2]
[359793376,1746351053920,-450.0,0.00019917,2]
[359793377,1746351053931,-450.0,0.00019917,2]
[359793378,1746351053941,-860.61,0.00019917,2]
[359793379,1746351053950,-450.0,0.00019917,2]
[359793380,1746351053960,-450.0,0.00019917,2]
[359793381,1746351053969,-475.09,0.00019917,2]
[359793382,1746351053979,-450.0,0.00019917,2]
[359793383,1746351053989,-493.02,0.00019917,2]
[359793384,1746351053998,-450.0,0.00019917,2]
[359793385,1746351054008,-450.0,0.00019917,2]
[359793386,1746351054018,-151.0,0.00019917,2]
[359793387,1746351054029,-450.0,0.00019917,2]
[359793388,1746351054040,-450.0,0.00019917,2]
[359793389,1746351054050,-450.0,0.00019917,2]
[359793390,1746351054060,-1620.56,0.00019917,2]
[359793391,1746351054069,-695.86,0.00019917,2]
[359793392,1746351054079,-450.0,0.00019917,2]
[359793393,1746351054088,-1345.45,0.00019917,2]
[359793394,1746351054098,-450.0,0.00019917,2]
[359793395,1746351054108,-450.0,0.00019917,2]
[359793396,1746351054117,-151.0,0.00019917,2]
[359793397,1746351054127,-537.92,0.00019917,2]
[359793398,1746351054136,-543.99,0.00019917,2]
[359793399,1746351054149,-151.0,0.00019917,2]
[359793400,1746351054158,-450.0,0.00019917,2]
[359793401,1746351054168,-450.0,0.00019917,2]
[359793402,1746351054177,-450.0,0.00019917,2]
[359793403,1746351054187,-450.0,0.00019917,2]
[359793404,1746351054197,-151.0,0.00019917,2]
[359793405,1746351054207,-450.0,0.00019917,2]
[359793406,1746351054217,-269.415875,0.00019917,2]
[359793407,1746351054227,-478.48573,0.00019917,2]
[359793408,1746351054237,-478.48573,0.00019917,2]
[359793409,1746351054247,-450.0,0.00019917,2]
[359793410,1746351054257,-906.47,0.00019917,2]
[359793411,1746351054267,-745.64,0.00019917,2]
[359793412,1746351054276,-450.0,0.00019917,2]
[359793413,1746351054286,-471.13735025,0.00019917,2]
[359793414,1746351054296,-610.75,0.00019917,2]
[359793415,1746351054306,-833.47,0.00019917,2]
[359793416,1746351054315,-466.24,0.00019917,2]
[359793417,1746351054324,-450.0,0.00019917,2]
[359793418,1746351054334,-641.66,0.00019917,2]
[359793419,1746351054344,-450.0,0.00019917,2]
[359793420,1746351054354,-482.19,0.00019917,2]
[359793421,1746351054364,-3230.66,0.00019917,2]
[359793422,1746351054373,-450.0,0.00019917,2]
[359793423,1746351054384,-450.0,0.00019917,2]
[359793424,1746351054394,-831.16,0.00019917,2]
[359793425,1746351054404,-1026.43,0.00019917,2]
[359793426,1746351054414,-450.0,0.00019917,2]
[359793427,1746351054424,-3403.41,0.00019917,2]
[359793428,1746351054434,-450.0,0.00019917,2]
[359793429,1746351054444,-706.47,0.00019917,2]
[359793430,1746351054454,-450.0,0.00019917,2]
[359793431,1746351054463,-450.0,0.00019917,2]
[359793432,1746351054473,-450.0,0.00019917,2]
[359793433,1746351054483,-450.0,0.00019917,2]
[359793434,1746351054493,-450.0,0.00019917,2]
[359793435,1746351054503,-2803.29,0.00019917,2]
[359793436,1746351054512,-841.99,0.00019917,2]
[359793437,1746351054523,-55115.85,0.00019917,2]
[359793438,1746351054532,-450.0,0.00019917,2]
[359793439,1746351054543,-450.0,0.00019917,2]
[359793440,1746351054552,-450.0,0.00019917,2]
[359793441,1746351054562,-798.6,0.00019917,2]
[359793442,1746351054571,-450.0,0.00019917,2]
[359793443,1746351054581,-450.0,0.00019917,2]
[359793444,1746351054591,-1141.6,0.00019917,2]
[359793445,1746351054604,-450.0,0.00019917,2]
[359793446,1746351054614,-2775.03,0.00019917,2]
[359793447,1746351054624,-450.0,0.00019917,2]
[359793448,1746351054633,-563.01,0.00019917,2]
[359793449,1746351054643,-13107.39,0.00019917,2]
[359793450,1746351054652,-722.64,0.00019917,2]
[359793451,1746351054661,-206.57945768,0.00019917,2]
[359793452,1746351054670,-881.79,0.00019917,2]
[359793453,1746351054680,-1402.98,0.00019917,2]
[359793454,1746351054689,-450.0,0.00019917,2]
[359793455,1746351054699,-528.63,0.00019917,2]
[359793456,1746351054709,-7221.87,0.00019917,2]
[359793457,1746351054718,-709.41,0.00019917,2]
[359793458,1746351054730,-1082.24,0.00019917,2]
[359793459,1746351054740,-450.0,0.00019917,2]
[359793460,1746351054750,-4203.96,0.00019917,2]
[359793461,1746351054759,-450.0,0.00019917,2]
[359793462,1746351054769,-450.0,0.00019917,2]
[359793463,1746351054779,-450.0,0.00019917,2]
[359793464,1746351054790,-696.93,0.00019917,2]
[359793465,1746351054800,-450.0,0.00019917,2]
[359793466,1746351054809,-831.17,0.00019917,2]
[359793467,1746351054819,-73600.72,0.00019917,2]
[359793468,1746351054829,-865.37,0.00019917,2]
[359793469,1746351054839,-150.22099074,0.00019917,2]
[359793470,1746351054849,-450.0,0.00019917,2]
[359793471,1746351054859,-450.0,0.00019917,2]
[359793472,1746351054869,-450.0,0.00019917,2]
[359793473,1746351054879,-804.23,0.00019917,2]
[359793474,1746351054889,-450.0,0.00019917,2]
[359793475,1746351054899,-1204.66,0.00019917,2]
[359793476,1746351054909,-3216.35,0.00019917,2]
[359793477,1746351054919,-493.14,0.00019917,2]
[359793478,1746351054928,-450.0,0.00019917,2]
[359793479,1746351054938,-691.8,0.00019917,2]
[359793480,1746351055104,-516.12,0.00019917,2]
[359793481,1746351055114,-539.48,0.00019917,2]
[359793482,1746351055125,-450.0,0.00019917,2]
[359793483,1746351055135,-450.0,0.00019917,2]
[359793484,1746351055147,-494.11,0.00019917,2]
[359793485,1746351055157,-450.0,0.00019917,2]
[359793486,1746351055167,-450.0,0.00019917,2]
[359793487,1746351055176,-450.0,0.00019917,2]
[359793488,1746351055186,-565.36,0.00019917,2]
[359793489,1746351055195,-2472.25,0.00019917,2]
[359793490,1746351055204,-3327.9,0.00019917,2]
[359793491,1746351055214,-559.97,0.00019917,2]
[359793492,1746351055224,-450.0,0.00019917,2]
[359793493,1746351055233,-450.0,0.00019917,2]
[359793494,1746351055242,-1396.5,0.00019917,2]
[359793495,1746351055255,-554.7,0.00019917,2]
[359793496,1746351055265,-450.0,0.00019917,2]
[359793497,1746351055275,-1108.1,0.00019917,2]
[359793498,1746351055285,-1188.84,0.00019917,2]
[359793499,1746351055294,-450.0,0.00019917,2]
[359793500,1746351055304,-450.0,0.00019917,2]
[359793501,1746351055314,-12500.0,0.00019919,2]
[359793502,1746351055323,-12500.0,0.00019928,2]
[359793503,1746351055332,-12500.0,0.00019936,2]
[359793504,1746351055342,-474.12,0.00019945,2]
[359793505,1746351055352,-450.0,0.00019945,2]
[359793506,1746351055361,-450.0,0.00019945,2]
[359793507,1746351055371,-666.05,0.00019945,2]
[359793508,1746351055381,-518.63,0.00019945,2]
[359793509,1746351055390,-690.36,0.00019945,2]
[359793510,1746351055399,-450.0,0.00019945,2]
[359793511,1746351055409,-151.0,0.00019945,2]
[359793512,1746351055419,-450.0,0.00019945,2]
[359793513,1746351055428,-151.0,0.00019945,2]
[359793514,1746351055438,-450.0,0.00019945,2]
[359793515,1746351055448,-860.61,0.00019945,2]
[359793516,1746351055457,-151.0,0.00019945,2]
[359793517,1746351055467,-450.0,0.00019945,2]
[359793518,1746351055477,-450.0,0.00019945,2]
[359793519,1746351055487,-151.0,0.00019945,2]
[359793520,1746351055497,-151.0,0.00019945,2]
[359793521,1746351055506,-475.09,0.00019945,2]
[359793522,1746351055516,-477.55040774,0.00019945,2]
[359793523,1746351055527,-493.02,0.00019945,2]
[359793524,1746351055538,-450.0,0.00019945,2]
[359793525,1746351055547,-450.0,0.00019945,2]
[359793526,1746351055558,-151.0,0.00019945,2]
[359793527,1746351055568,-450.0,0.00019945,2]
[359793528,1746351055578,-450.0,0.00019945,2]
[359793529,1746351055588,-450.0,0.00019945,2]
[359793530,1746351055598,-1620.56,0.00019945,2]
[359793531,1746351055607,-695.86,0.00019945,2]
[359793532,1746351055617,-450.0,0.00019945,2]
[359793533,1746351055627,-1345.45,0.00019945,2]
[359793534,1746351055636,-450.0,0.00019945,2]
[359793535,1746351055646,-450.0,0.00019945,2]
[359793536,1746351055656,-172.629842,0.00019945,2]
[359793537,1746351055665,-537.92,0.00019945,2]
[359793538,1746351055675,-543.99,0.00019945,2]
[359793539,1746351055684,-151.0,0.00019945,2]
[359793540,1746351055694,-450.0,0.00019945,2]
[359793541,1746351055704,-450.0,0.00019945,2]
[359793542,1746351055714,-450.0,0.00019945,2]
[359793543,1746351055724,-450.0,0.00019945,2]
[359793544,1746351055734,-151.0,0.00019945,2]
[359793545,1746351055744,-450.0,0.00019945,2]
[359793546,1746351055753,-478.48573,0.00019945,2]
[359793547,1746351055763,-478.48573,0.00019945,2]
[359793548,1746351055773,-450.0,0.00019945,2]
[359793549,1746351055783,-906.47,0.00019945,2]
[359793550,1746351055793,-745.64,0.00019945,2]
[359793551,1746351055803,-450.0,0.00019945,2]
[359793552,1746351055813,-151.0,0.00019945,2]
[359793553,1746351055823,-610.75,0.00019945,2]
[359793554,1746351055833,-833.47,0.00019945,2]
[359793555,1746351055843,-466.24,0.00019945,2]
[359793556,1746351055853,-450.0,0.00019945,2]
[359793557,1746351055863,-641.66,0.00019945,2]
[359793558,1746351055874,-450.0,0.00019945,2]
[359793559,1746351055884,-482.19,0.00019945,2]
[359793560,1746351055894,-3230.66,0.00019945,2]
[359793561,1746351055904,-554.2194688,0.00019945,2]
[359793562,1746351055913,-360.04028,0.00019945,2]
[359793563,1746351055923,-360.04028,0.00019945,2]
[359793564,1746351055933,-450.0,0.00019945,2]
[359793565,1746351055943,-831.16,0.00019945,2]
[359793566,1746351055953,-158.005123,0.00019945,2]
[359793567,1746351055963,-1026.43,0.00019945,2]
[359793568,1746351055973,-450.0,0.00019945,2]
[359793569,1746351055983,-3403.41,0.00019945,2]
[359793570,1746351055993,-492.42580984,0.00019945,2]
[359793571,1746351056003,-706.47,0.00019945,2]
[359793572,1746351056012,-450.0,0.00019945,2]
[359793573,1746351056022,-450.0,0.00019945,2]
[359793574,1746351056032,-450.0,0.00019945,2]
[359793575,1746351056043,-212.15872177,0.00019945,2]
[359793576,1746351056054,-450.0,0.00019945,2]
[359793577,1746351056063,-2803.29,0.00019945,2]
[359793578,1746351056074,-151.0,0.00019945,2]
[359793579,1746351056084,-841.99,0.00019945,2]
[359793580,1746351056095,-289.332734,0.00019945,2]
[359793581,1746351056105,-55115.85,0.00019945,2]
[359793582,1746351056115,-450.0,0.00019945,2]
[359793583,1746351056126,-450.0,0.00019945,2]
[359793584,1746351056136,-450.0,0.00019945,2]
[359793585,1746351056148,-798.6,0.00019945,2]
[359793586,1746351056158,-450.0,0.00019945,2]
[359793587,1746351056168,-450.0,0.00019945,2]
[359793588,1746351056178,-151.0,0.00019945,2]
[359793589,1746351056187,-1141.6,0.00019945,2]
[359793590,1746351056197,-450.0,0.00019945,2]
[359793591,1746351056207,-2775.03,0.00019945,2]
[359793592,1746351056217,-450.0,0.00019945,2]
[359793593,1746351056226,-563.01,0.00019945,2]
[359793594,1746351056236,-13107.39,0.00019945,2]
[359793595,1746351056246,-722.64,0.00019945,2]
[359793596,1746351056256,-177.066601,0.00019945,2]
[359793597,1746351056265,-881.79,0.00019945,2]
[359793598,1746351056275,-1402.98,0.00019945,2]
[359793599,1746351056284,-450.0,0.00019945,2]
[359793600,1746351056294,-528.63,0.00019945,2]
[359793601,1746351056303,-7221.87,0.00019945,2]
[359793602,1746351056313,-709.41,0.00019945,2]
[359793603,1746351056323,-1082.24,0.00019945,2]
[359793604,1746351056332,-450.0,0.00019945,2]
[359793605,1746351056342,-4203.96,0.00019945,2]
[359793606,1746351056351,-450.0,0.00019945,2]
[359793607,1746351056362,-450.0,0.00019945,2]
[359793608,1746351056372,-450.0,0.00019945,2]
[359793609,1746351056382,-696.93,0.00019945,2]
[359793610,1746351056392,-450.0,0.00019945,2]
[359793611,1746351056402,-831.17,0.00019945,2]
[359793612,1746351056411,-73600.72,0.00019945,2]
[359793613,1746351056421,-865.37,0.00019945,2]
[359793614,1746351056430,-450.0,0.00019945,2]
[359793615,1746351056440,-450.0,0.00019945,2]
[359793616,1746351056449,-450.0,0.00019945,2]
[359793617,1746351056459,-162.016874,0.00019945,2]
[359793618,1746351056468,-804.23,0.00019945,2]
[359793619,1746351056478,-450.0,0.00019945,2]
[359793620,1746351056488,-1204.66,0.00019945,2]
[359793621,1746351056497,-151.0,0.00019945,2]
[359793622,1746351056507,-3216.35,0.00019945,2]
[359793623,1746351056517,-493.14,0.00019945,2]
[359793624,1746351056527,-450.0,0.00019945,2]
[359793625,1746351056537,-691.8,0.00019945,2]
[359793626,1746351056547,-516.12,0.00019945,2]
[359793627,1746351056556,-539.48,0.00019945,2]
[359793628,1746351056566,-450.0,0.00019945,2]
[359793629,1746351056577,-450.0,0.00019945,2]
[359793630,1746351056586,-494.11,0.00019945,2]
[359793631,1746351056596,-450.0,0.00019945,2]
[359793632,1746351056605,-450.0,0.00019945,2]
[359793633,1746351056615,-450.0,0.00019945,2]
[359793634,1746351056625,-565.36,0.00019945,2]
[359793635,1746351056634,-2472.25,0.00019945,2]
[359793636,1746351056644,-3327.9,0.00019945,2]
[359793637,1746351056654,-559.97,0.00019945,2]
[359793638,1746351056664,-450.0,0.00019945,2]
[359793639,1746351056674,-450.0,0.00019945,2]
[359793640,1746351056684,-1396.5,0.00019945,2]
[359793641,1746351056694,-554.7,0.00019945,2]
[359793642,1746351056704,-450.0,0.00019945,2]
[359793643,1746351056713,-1108.1,0.00019945,2]
[359793644,1746351056723,-1188.84,0.00019945,2]
[359793645,1746351056733,-450.0,0.00019945,2]
[359793646,1746351056743,-450.0,0.00019945,2]
[359793647,1746351056752,-12500.0,0.00019945,2]
[359793648,1746351056762,-12500.0,0.00019954,2]
[359793649,1746351056771,-12500.0,0.00019963,2]
[359793650,1746351056781,-1000.0,0.0001997,2]
[359793651,1746351056791,-500.0,0.00019971,2]
[359793652,1746351056800,-500.0,0.00019971,2]
[359793653,1746351056810,-12500.0,0.00019972,2]
[359793654,1746351056819,-474.12,0.00019972,2]
[359793655,1746351056829,-450.0,0.00019972,2]
[359793656,1746351056838,-450.0,0.00019972,2]
[359793657,1746351056848,-666.05,0.00019972,2]
[359793658,1746351056858,-518.63,0.00019972,2]
[359793659,1746351056867,-690.36,0.00019972,2]
[359793660,1746351056877,-450.0,0.00019972,2]
[359793661,1746351056888,-450.0,0.00019972,2]
[359793662,1746351056898,-450.0,0.00019972,2]
[359793663,1746351056908,-860.61,0.00019972,2]
[359793664,1746351056918,-450.0,0.00019972,2]
[359793665,1746351056927,-450.0,0.00019972,2]
[359793666,1746351056937,-475.09,0.00019972,2]
[359793667,1746351056947,-493.02,0.00019972,2]
[359793668,1746351056957,-450.0,0.00019972,2]
[359793669,1746351056967,-450.0,0.00019972,2]
[359793670,1746351056978,-450.0,0.00019972,2]
[359793671,1746351056988,-450.0,0.00019972,2]
[359793672,1746351056997,-450.0,0.00019972,2]
[359793673,1746351057008,-1620.56,0.00019972,2]
[359793674,1746351057017,-695.86,0.00019972,2]
[359793675,1746351057027,-450.0,0.00019972,2]
[359793676,1746351057037,-1345.45,0.00019972,2]
[359793677,1746351057047,-450.0,0.00019972,2]
[359793678,1746351057057,-450.0,0.00019972,2]
[359793679,1746351057066,-537.92,0.00019972,2]
[359793680,1746351057076,-543.99,0.00019972,2]
[359793681,1746351057086,-450.0,0.00019972,2]
[359793682,1746351057096,-450.0,0.00019972,2]
[359793683,1746351057106,-450.0,0.00019972,2]
[359793684,1746351057116,-450.0,0.00019972,2]
[359793685,1746351057126,-450.0,0.00019972,2]
[359793686,1746351057136,-450.0,0.00019972,2]
[359793687,1746351057146,-906.47,0.00019972,2]
[359793688,1746351057157,-745.64,0.00019972,2]
[359793689,1746351057168,-450.0,0.00019972,2]
[359793690,1746351057179,-151.0,0.00019972,2]
[359793691,1746351057189,-610.75,0.00019972,2]
[359793692,1746351057199,-833.47,0.00019972,2]
[359793693,1746351057209,-466.24,0.00019972,2]
[359793694,1746351057220,-450.0,0.00019972,2]
[359793695,1746351057229,-641.66,0.00019972,2]
[359793696,1746351057239,-357.69044254,0.00019972,2]
[359793697,1746351057249,-482.19,0.00019972,2]
[359793698,1746351057259,-3230.66,0.00019972,2]
[359793699,1746351057268,-360.04028,0.00019972,2]
[359793700,1746351057279,-360.04028,0.00019972,2]
[359793701,1746351057289,-450.0,0.00019972,2]
[359793702,1746351057299,-831.16,0.00019972,2]
[359793703,1746351057308,-1026.43,0.00019972,2]
[359793704,1746351057318,-450.0,0.00019972,2]
[359793705,1746351057328,-3403.41,0.00019972,2]
[359793706,1746351057338,-706.47,0.00019972,2]
[359793707,1746351057347,-450.0,0.00019972,2]
[359793708,1746351057357,-450.0,0.00019972,2]
[359793709,1746351057367,-450.0,0.00019972,2]
[359793710,1746351057376,-450.0,0.00019972,2]
[359793711,1746351057386,-2803.29,0.00019972,2]
[359793712,1746351057396,-151.0,0.00019972,2]
[359793713,1746351057407,-841.99,0.00019972,2]
[359793714,1746351057417,-55115.85,0.00019972,2]
[359793715,1746351057427,-450.0,0.00019972,2]
[359793716,1746351057437,-450.0,0.00019972,2]
[359793717,1746351057447,-450.0,0.00019972,2]
[359793718,1746351057458,-798.6,0.00019972,2]
[359793719,1746351057467,-450.0,0.00019972,2]
[359793720,1746351057477,-450.0,0.00019972,2]
[359793721,1746351057487,-151.0,0.00019972,2]
[359793722,1746351057498,-1141.6,0.00019972,2]
[359793723,1746351057509,-450.0,0.00019972,2]
[359793724,1746351057519,-2775.03,0.00019972,2]
[359793725,1746351057531,-450.0,0.00019972,2]
[359793726,1746351057540,-563.01,0.00019972,2]
[359793727,1746351057549,-13107.39,0.00019972,2]
[359793728,1746351057611,-722.64,0.00019972,2]
[359793729,1746351057621,-881.79,0.00019972,2]
[359793730,1746351057631,-1402.98,0.00019972,2]
[359793731,1746351057641,-450.0,0.00019972,2]
[359793732,1746351057650,-528.63,0.00019972,2]
[359793733,1746351057659,-7221.87,0.00019972,2]
[359793734,1746351057668,-709.41,0.00019972,2]
[359793735,1746351057678,-1082.24,0.00019972,2]
[359793736,1746351057687,-450.0,0.00019972,2]
[359793737,1746351057696,-4203.96,0.00019972,2]
[359793738,1746351057706,-450.0,0.00019972,2]
[359793739,1746351057715,-450.0,0.00019972,2]
[359793740,1746351057724,-450.0,0.00019972,2]
[359793741,1746351057734,-696.93,0.00019972,2]
[359793742,1746351057743,-450.0,0.00019972,2]
[359793743,1746351057752,-831.17,0.00019972,2]
[359793744,1746351057761,-73600.72,0.00019972,2]
[359793745,1746351057770,-865.37,0.00019972,2]
[359793746,1746351057779,-450.0,0.00019972,2]
[359793747,1746351057789,-450.0,0.00019972,2]
[359793748,1746351057799,-450.0,0.00019972,2]
[359793749,1746351057809,-804.23,0.00019972,2]
[359793750,1746351057818,-450.0,0.00019972,2]
[359793751,1746351057828,-1204.66,0.00019972,2]
[359793752,1746351057837,-151.0,0.00019972,2]
[359793753,1746351057847,-3216.35,0.00019972,2]
[359793754,1746351057856,-493.14,0.00019972,2]
[359793755,1746351057866,-450.0,0.00019972,2]
[359793756,1746351057875,-691.8,0.00019972,2]
[359793757,1746351057885,-516.12,0.00019972,2]
[359793758,1746351057895,-539.48,0.00019972,2]
[359793759,1746351057904,-450.0,0.00019972,2]
[359793760,1746351057914,-368.72876082,0.00019972,2]
[359793761,1746351057924,-494.11,0.00019972,2]
[359793762,1746351057932,-450.0,0.00019972,2]
[359793763,1746351057942,-450.0,0.00019972,2]
[359793764,1746351057952,-450.0,0.00019972,2]
[359793765,1746351057962,-565.36,0.00019972,2]
[359793766,1746351057971,-2472.25,0.00019972,2]
[359793767,1746351057981,-3327.9,0.00019972,2]
[359793768,1746351057991,-559.97,0.00019972,2]
[359793769,1746351058001,-450.0,0.00019972,2]
[359793770,1746351058011,-450.0,0.00019972,2]
[359793771,1746351058020,-1396.5,0.00019972,2]
[359793772,1746351058030,-554.7,0.00019972,2]
[359793773,1746351058040,-450.0,0.00019972,2]
[359793774,1746351058049,-1108.1,0.00019972,2]
[359793775,1746351058059,-1188.84,0.00019972,2]
[359793776,1746351058069,-450.0,0.00019972,2]
[359793777,1746351058078,-374.04306522,0.00019972,2]
[359793778,1746351058087,-300.0,0.00019973,2]
[359793779,1746351058097,-12500.0,0.0001998,2]
[359793780,1746351058107,-151.0,0.00019985,2]
[359793781,1746351058116,-151.0,0.00019985,2]
[359793782,1746351058126,-315.105369,0.00019985,2]
[359793783,1746351058135,-315.105369,0.00019985,2]
[359793784,1746351058145,-151.0,0.00019985,2]
[359793785,1746351058154,-322.919763,0.00019985,2]
[359793786,1746351058164,-322.919763,0.00019985,2]
[359793787,1746351058173,-500.0,0.00019985,2]
[359793788,1746351058182,-150.0,0.00019985,2]
[359793789,1746351058192,-200.0,0.00019985,2]
[359793790,1746351058201,-150.0,0.00019985,2]
[359793791,1746351058210,-500.0,0.00019985,2]
[359793792,1746351058220,-500.0,0.00019985,2]
[359793793,1746351058229,-500.0,0.00019985,2]
[359793794,1746351058239,-500.0,0.00019985,2]
[359793795,1746351058248,-500.0,0.00019985,2]
[359793796,1746351058257,-500.0,0.00019985,2]